Cogmind - Beta 13 @@@ ROGUE MODE // 2024.05.28 @ 09:36:52 Player: Zeldest Result: Destroyed by B-48 Gladiator with Mace Performance ------------- Evolutions (3) 1500 Regions Visited (8) 1600 Robots Destroyed (52) 260 Value Destroyed (2193) 2193 Prototype IDs (3) 60 Alien Tech Used (0) 0 Bonus (893) 893 TOTAL SCORE: 6506 Bonus ------- High Alert Combat Kills 63 Follower Combat Kills 312 Entered Garrisons 400 Used RIF Installer 500 Friendly Fire -382 Cogmind --------- Core Integrity 0/700 Matter 300/300 Energy 99/100 System Corruption 10% Temperature Cool (0) Movement Core (50) Location -7/Garrison Parts ------- > --- POWER (1) -------- (None) > --- PROPULSION (3) --- (None) > --- UTILITY (7) ------ Relay Coupler [Brawler] (31) > --- WEAPON (2) ------- Autogun > --- INVENTORY (5) ---- Light Nuclear Core Relay Coupler [NC] (27) Bomb Drone Bay (0/16) Peak State ------------ > --- POWER ------------ Nuclear Core > --- PROPULSION ------- Gravmag System Gravmag System > --- UTILITY ---------- Huge Storage Unit Advanced Visual Processing Unit Improved Signal Interpreter Advanced ECM Suite Relay Coupler [NC] Relay Coupler [Swarmer] Relay Coupler [Specialist] > --- WEAPON ----------- Remote Datajack Makeshift Axe > --- INVENTORY -------- Light Nuclear Core Light Nuclear Core Aluminum Leg Aluminum Leg Wheel Wheel High-capacity Battery Sensor Array Hacking Suite Authchip [R/Combat] Authchip [R/Combat] Authchip [R/Combat] Authchip [R/Combat] Relay Coupler [Brawler] Relay Coupler [Sentry] Relay Coupler [Sentry] Relay Coupler [Demolisher] Bomb Drone Bay Particle Gun Remote Datajack Remote Datajack [Rating: 46] Favorites ----------- Power Light Nuclear Core Engine Light Ion Engine Power Core Light Nuclear Core Propulsion Compact Wheel Leg Aluminum Leg Wheel Compact Wheel Hover Unit Gravmag System Flight Unit Improved Flight Unit Utility Huge Storage Unit Device Terrain Scanner Storage Huge Storage Unit Processor Improved Terrain Scan Processor Hackware Relay Coupler [NC] Protection Hardened Light Armor Plating Weapon Grenade Launcher Energy Gun Particle Gun Energy Cannon Improved EM Pulse Cannon Ballistic Gun Autogun Launcher Grenade Launcher Special Weapon Remote Datajack Slashing Weapon Makeshift Axe Build | -11 -10 -10 -9 -8 -8 -8 -7 -7 ------- Run | Yrd Mat Min Mat Mat Gar Mat Fac Gar Slots Evolved 6 | . . . 2 2 . . 2 . Power . | . . . . . . . . . Propulsion 1 | . . . . 1 . . . . Utility 5 | . . . 2 1 . . 2 . Weapon . | . . . . . . . . . Parts Attached 91 | 5 6 1 5 2 13 36 21 2 Power 19 | 2 . . 1 1 2 8 5 . Engine 4 | 2 . . 1 . . 1 . . Core 15 | . . . . 1 2 7 5 . Reactor . | . . . . . . . . . Propulsion 18 | 2 . . . . 5 5 6 . Treads . | . . . . . . . . . Leg 6 | . . . . . 3 3 . . Wheel 9 | 2 . . . . 2 1 4 . Hover 2 | . . . . . . . 2 . Flight 1 | . . . . . . 1 . . Utility 32 | 1 4 1 4 1 3 11 7 . Device 10 | . 1 . 3 . 1 4 1 . Storage 4 | 1 2 1 . . . . . . Processor 4 | . . . . 1 . 3 . . Hackware 7 | . . . . . . 1 6 . Protection 7 | . 1 . 1 . 2 3 . . Artifact . | . . . . . . . . . Weapon 22 | . 2 . . . 3 12 3 2 Energy Gun 1 | . . . . . . 1 . . Energy Cannon 6 | . . . . . . 6 . . Ballistic Gun 1 | . . . . . . . . 1 Ballistic Cannon . | . . . . . . . . . Launcher 3 | . 2 . . . 1 . . . Special Weapon 5 | . . . . . 1 1 2 1 Impact Weapon . | . . . . . . . . . Slashing Weapon 6 | . . . . . 1 4 1 . Piercing Weapon . | . . . . . . . . . Special Melee Weapon . | . . . . . . . . . Unidentified Prototypes 3 | . . . 1 . . 2 . . Parts Lost 39 | . . . . . 8 8 19 4 Power 6 | . . . . . 1 1 4 . Propulsion 10 | . . . . . 2 2 6 . Utility 12 | . . . . . 1 3 5 3 Weapon 11 | . . . . . 4 2 4 1 Highest Loss Streak 7 | . . . . . 3 3 7 4 To Critical Strikes . | . . . . . . . . . Average Slot Usage (%) 87 | . 87 100 100 89 81 85 86 26 Engine 4 | . 14 14 11 8 . . . . Core 5 | . . . . 1 8 8 6 . Leg 6 | . . . . . 14 6 4 . Wheel 13 | . 28 28 22 18 8 10 4 . Device 12 | . 7 14 32 27 17 8 6 . Storage 9 | . 14 14 11 9 9 9 6 . Processor 8 | . . . . 8 9 16 10 7 Hackware 5 | . . . . . . . 27 12 Protection 3 | . 1 . . . 4 8 . . Energy Cannon 2 | . . . . . . 10 . . Launcher 8 | . 21 28 22 18 2 . . . Special Weapon 2 | . . . . . 2 . 6 1 Slashing Weapon 3 | . . . . . 4 4 6 . Naked Turns . | . . . . . . . . . Heaviest Build 112 | 8 50 90 96 96 99 112 96 3 Greatest Support 32 | 32 32 32 32 32 32 32 30 3 Greatest Overweight (x) 35 | . 1 2 2 2 3 35 9 . Average Overweight (x) 2 | . . 1 2 2 2 3 2 . Largest Inventory Capacity 25 | 8 20 25 25 25 25 25 25 5 Average Capacity 22 | 6 13 22 25 25 25 25 23 5 Most Carried 25 | 5 7 13 13 15 25 25 23 4 Average Carried 16 | 1 3 10 11 13 19 23 17 2 Final Capacity 25 | 8 20 25 25 25 25 25 5 5 Final Carried 25 | 1 7 12 13 15 25 24 3 4 Class Distribution -------------------- 52% | Mutant 15% | Bothacker-Mutant 15% | Scavenger-Mutant 9% | Skirmisher 3% | Bothacker-Assassin Dominant Class ---------------- Mutant | -10/Materials Mutant | -10/Mines Mutant | -9/Materials Skirmisher | -8/Materials Scavenger-Mutant | -8/Garrison Mutant | -8/Materials Bothacker-Mutant | -7/Factory Mutant | -7/Garrison Resources | -11 -10 -10 -9 -8 -8 -8 -7 -7 ----------- Run | Yrd Mat Min Mat Mat Gar Mat Fac Gar Matter Collected 1519 | 250 241 29 50 10 224 391 314 10 Remotely . | . . . . . . . . . Salvage Created 1467 | . 270 . . . 185 751 231 30 Parts 101 | . 34 . . . 11 43 13 . Haulers Intercepted 2 | . 2 . . . . . . . Recyclers Shooed . | . . . . . . . . . Parts Field Recycled . | . . . . . . . . . Retrieved Matter . | . . . . . . . . . Parts Self-Destructed . | . . . . . . . . . Prevented . | . . . . . . . . . Kills | -11 -10 -10 -9 -8 -8 -8 -7 -7 ------- Run | Yrd Mat Min Mat Mat Gar Mat Fac Gar Combat Hostiles Destroyed 38 | . 11 . . . 8 13 5 1 Melee 11 | . . . . . 2 3 5 1 Guns 1 | . . . . . . 1 . . Cannons 9 | . . . . . . 9 . . AOE 17 | . 11 . . . 6 . . . Classes Destroyed 12 | . 7 . . . 2 2 1 . Worker 2 | . 1 . . . . 1 . . Builder 1 | . . . . . . 1 . . Hauler 2 | . 2 . . . . . . . Recycler 3 | . 1 . . . . 2 . . Operator 1 | . 1 . . . . . . . Watcher 3 | . 1 . . . . 2 . . Swarmer 14 | . 6 . . . 1 6 . 1 Grunt 16 | . 5 . . . 6 3 2 . Duelist 1 | . . . . . . 1 . . Sentry 4 | . . . . . 1 3 . . Hunter 1 | . . . . . . . 1 . Programmer 3 | . . . . . 1 . 2 . Thug 1 | . . . . . 1 . . . Best Kill Streak 6 | . 6 . . . 2 3 1 1 Combat Bots Only 5 | . 5 . . . 2 2 1 1 Max Kills in Single Turn 3 | . 3 . . . 1 1 1 1 Gunslinging . | . . . . . . . . . Exploded 2 | . 2 . . . 1 . . . Melee 1 | . . . . . 1 1 1 1 Uniques/NPCs Destroyed . | . . . . . . . . . Combat | -11 -10 -10 -9 -8 -8 -8 -7 -7 -------- Run | Yrd Mat Min Mat Mat Gar Mat Fac Gar Hostile Shots Fired 352 | . 15 . 2 . 41 124 155 15 Missed 88 | . 3 . 1 . 4 29 44 7 Damage Taken 4209 | . 149 . 10 . 915 1162 1771 202 Core 1217 | . 14 . . . 130 336 604 133 Absorbed by Shields 32 | . . . . . 21 . . 11 Core Remaining (%) 77 | 100 . 94 100 . . 15 . . Volleys Fired 95 | . 11 . . . 16 39 27 2 Largest 2 | . 2 . . . 2 2 1 1 Hottest 138 | . 60 . . . 100 138 5 23 Shots Fired 110 | . 20 . . . 19 42 27 2 Gun 12 | . . . . . . 11 . 1 Cannon 26 | . . . . . . 26 . . Launcher 38 | . 20 . . . 18 . . . Special 34 | . . . . . 1 5 27 1 Kinetic 1 | . . . . . . . . 1 Thermal 12 | . . . . . 1 11 . . Explosive 38 | . 20 . . . 18 . . . Electromagnetic 26 | . . . . . . 26 . . Robot Hit Streak 10 | . 3 . . . 8 10 10 . Robot Miss Streak 4 | . 4 . . . 2 4 3 1 Penetration Max . | . . . . . . . . . Secondary Targets . | . . . . . . . . . Shots Hit Robots 97 | . 7 . . . 13 41 36 . Core Hits 73 | . 30 . . . 15 22 4 2 Critical Kills . | . . . . . . . . . Critical Parts Destroyed . | . . . . . . . . . Critical Strikes 4 | . . . . . . 2 2 . Burn 1 | . . . . . . 1 . . Sever 3 | . . . . . . 1 2 . Melee Attacks 74 | . . . . . 5 20 49 . Impact . | . . . . . . . . . Slashing 74 | . . . . . 5 20 49 . Piercing . | . . . . . . . . . Sneak Attacks 4 | . . . . . . 4 . . Combat Hostiles . | . . . . . . . . . Follow-up Attacks 2 | . . . . . . 2 . . Damage Inflicted 3988 | . 980 . . . 1130 1126 720 32 Guns 104 | . . . . . . 104 . . Cannons 482 | . . . . . . 482 . . Explosions 2029 | . 980 . . . 1049 . . . Melee 1341 | . . . . . 81 540 720 . Ramming 32 | . . . . . . . . 32 Kinetic . | . . . . . . . . . Thermal 104 | . . . . . . 104 . . Explosive 2029 | . 980 . . . 1049 . . . Electromagnetic 482 | . . . . . . 482 . . Impact . | . . . . . . . . . Slashing 1341 | . . . . . 81 540 720 . Piercing . | . . . . . . . . . Highest Corruption 10 | . . . . . . 2 6 10 Average Corruption 2 | . . . . . . 2 3 7 Corruption Purged . | . . . . . . . . . Corruption Blocked . | . . . . . . . . . Effects 28 | . . . . . . 14 13 1 Message Errors 10 | . . . . . . 3 6 1 Matter Fused 5 | . . . . . . 3 2 . Heat Flow Errors 3 | . . . . . . 1 2 . Energy Discharges 3 | . . . . . . 2 1 . Parts Fused 1 | . . . . . . . 1 . Data Loss (minor) 3 | . . . . . . 2 1 . Data Loss (major) 2 | . . . . . . 2 . . Alerts 1 | . . . . . . 1 . . Overload Shots . | . . . . . . . . . Overflow Damage 138 | . 8 . . . 58 7 65 . Projectiles 6 | . . . . . . 6 . . Explosions 66 | . 8 . . . 58 . . . Melee 66 | . . . . . . 1 65 . Knockbacks . | . . . . . . . . . Impact . | . . . . . . . . . Kinetic . | . . . . . . . . . Secondary . | . . . . . . . . . Self-Inflicted Damage 163 | . 19 . . . 129 . . 15 Shots 7 | . 2 . . . 5 . . . Rammed 6 | . . . . . . . . 6 Targets Rammed 6 | . . . . . . . . 6 Kicked . | . . . . . . . . . Crushed . | . . . . . . . . . Highest Temperature 248 | . 69 . . . 13 248 187 . Average Temperature 65 | . 26 . . . 3 79 72 . Received Heat Transfer 1023 | . 51 . 6 . 273 387 306 . Siege Activations . | . . . . . . . . . Robots Corrupted . | . . . . . . . . . Combat Hostiles . | . . . . . . . . . Parts Fried 6 | . . . . . . 6 . . Impact Corruptions . | . . . . . . . . . Robots Melted . | . . . . . . . . . Combat Hostiles . | . . . . . . . . . Parts Melted . | . . . . . . . . . Heat Transferred 333 | . . . . . . 333 . . Parts Sabotaged . | . . . . . . . . . Parts Stolen . | . . . . . . . . . Parts Stripped . | . . . . . . . . . Power Chain Reactions . | . . . . . . . . . Alert | -11 -10 -10 -9 -8 -8 -8 -7 -7 ------- Run | Yrd Mat Min Mat Mat Gar Mat Fac Gar Peak Influence 698 | . 290 109 177 79 698 501 181 73 Initial 339 | . . 109 . 74 53 339 151 33 Average 256 | . 159 39 63 77 489 356 56 37 Maximum Alert Level 2 | . 1 . . . 2 2 . . Low Security (%) 45 | 100 60 100 100 100 2 . 100 100 Level 1 24 | . 39 . . . 9 79 . . Level 2 30 | . . . . . 87 20 . . Level 3 . | . . . . . . . . . Level 4 . | . . . . . . . . . Level 5 . | . . . . . . . . . High Security . | . . . . . . . . . Max Security . | . . . . . . . . . Squads Dispatched 5 | . 1 . 1 . . . 3 . Investigation 2 | . . . 1 . . . 1 . Extermination 2 | . . . . . . . 2 . Reinforcement 1 | . 1 . . . . . . . Assault . | . . . . . . . . . Garrison . | . . . . . . . . . Intercept . | . . . . . . . . . Searches Triggered . | . . . . . . . . . Construction Impeded . | . . . . . . . . . Haulers Reinforced . | . . . . . . . . . Active Scanning Responses . | . . . . . . . . . Cargo Convoy Interrupts . | . . . . . . . . . Stealth | -11 -10 -10 -9 -8 -8 -8 -7 -7 --------- Run | Yrd Mat Min Mat Mat Gar Mat Fac Gar Distress Signals 7 | . 1 . . . . 4 2 . Communications Jammed . | . . . . . . . . . Distress Signals . | . . . . . . . . . Times Spotted 109 | . 19 . 6 . 24 32 23 5 Peak Tracking Total 8 | . 5 . 2 . 4 5 8 3 Tactical Retreats 5 | . . . . . . 4 1 . Traps | -11 -10 -10 -9 -8 -8 -8 -7 -7 ------- Run | Yrd Mat Min Mat Mat Gar Mat Fac Gar Traps Triggered 14 | . . . 1 . 7 4 1 1 Indirectly . | . . . . . . . . . Trap Hack Attempts . | . . . . . . . . . Triggered . | . . . . . . . . . Disarmed . | . . . . . . . . . Reprogrammed . | . . . . . . . . . Reused . | . . . . . . . . . Traps Extracted . | . . . . . . . . . Installed . | . . . . . . . . . Triggered . | . . . . . . . . . Machines | -11 -10 -10 -9 -8 -8 -8 -7 -7 ---------- Run | Yrd Mat Min Mat Mat Gar Mat Fac Gar Machines Disabled 5 | . 1 . . . 3 . . 1 Max in Single Turn 1 | . 1 . . . 1 . . 1 Garrison Relay 5 | . . . . . 4 . . 1 Machines Repaired . | . . . . . . . . . Machines Dismantled . | . . . . . . . . . Machines Sabotaged . | . . . . . . . . . Overloaded Fab Kills . | . . . . . . . . . Hacking | -11 -10 -10 -9 -8 -8 -8 -7 -7 --------- Run | Yrd Mat Min Mat Mat Gar Mat Fac Gar Machines Accessed 21 | . 4 1 1 2 . 6 7 . Terminals 15 | . 3 . 1 1 . 5 5 . Fabricators 1 | . . . . . . . 1 . Repair Stations 1 | . . . . . . 1 . . Recycling Units 1 | . 1 . . . . . . . Scanalyzers . | . . . . . . . . . Garrison Access 2 | . . . . 1 . . 1 . Total Hacks 52 | . 11 1 1 4 . 23 12 . Successful 36 | . 9 1 1 3 . 14 8 . Failed 16 | . 2 . . 1 . 9 4 . Catastrophic 1 | . . . . . . . 1 . Database Lockouts . | . . . . . . . . . Manual 43 | . 11 . 1 3 . 21 7 . Terminals 44 | . 10 . 1 3 . 22 8 . Fabricators 2 | . . . . . . . 2 . Repair Stations 1 | . . . . . . 1 . . Recycling Units 1 | . 1 . . . . . . . Scanalyzers . | . . . . . . . . . Garrison Access 3 | . . . . 1 . . 2 . Terminal Hacks 4 | . 1 1 . . . 1 1 . Record 1 | . . . . . . 1 . . Open Door 1 | . . 1 . . . . . . Open DSF 1 | . . . . . . . 1 . Emergency Access Points 1 | . 1 . . . . . . . Fabricator Hacks 1 | . . . . . . . 1 . Network Status 1 | . . . . . . . 1 . Repair Station Hacks 1 | . . . . . . 1 . . Scan Component 1 | . . . . . . 1 . . Recycling Unit Hacks . | . . . . . . . . . Scanalyzer . | . . . . . . . . . Garrison Access Hacks 3 | . . . . 1 . . 2 . Unlock Access 2 | . . . . 1 . . 1 . Coupler Status 1 | . . . . . . . 1 . Unauthorized Hacks 27 | . 8 . 1 2 . 12 4 . Terminals 26 | . 7 . 1 2 . 12 4 . Track 1 | . . . . . . 1 . . Assimilate 10 | . 3 . . 1 . 4 2 . Botnet 11 | . 3 . 1 1 . 4 2 . Operators 4 | . 1 . . . . 3 . . Fabricators . | . . . . . . . . . Repair Stations . | . . . . . . . . . Recycling Units 1 | . 1 . . . . . . . Monitor 1 | . 1 . . . . . . . Scanalyzers . | . . . . . . . . . Garrison Access . | . . . . . . . . . Data Cores Recovered 1 | . . . 1 . . . . . Used . | . . . . . . . . . Hacking Detections 17 | . 3 . 1 1 . 6 6 . Full Trace Events . | . . . . . . . . . Feedback Events . | . . . . . . . . . Feedback Blocked . | . . . . . . . . . Robot Schematics Acquired . | . . . . . . . . . Robots Built . | . . . . . . . . . Authchips . | . . . . . . . . . Time . | . . . . . . . . . Total Robot Build Rating . | . . . . . . . . . Part Schematics Acquired . | . . . . . . . . . Parts Built . | . . . . . . . . . Authchips . | . . . . . . . . . Time . | . . . . . . . . . Total Part Build Rating . | . . . . . . . . . Parts Repaired . | . . . . . . . . . Time . | . . . . . . . . . Parts Recycled . | . . . . . . . . . Recycled Matter . | . . . . . . . . . Retrieved Matter . | . . . . . . . . . Retrieved Components . | . . . . . . . . . Parts Scanalyzed . | . . . . . . . . . Part Schematics Acquired . | . . . . . . . . . Parts Damaged . | . . . . . . . . . Bothacking | -11 -10 -10 -9 -8 -8 -8 -7 -7 ------------ Run | Yrd Mat Min Mat Mat Gar Mat Fac Gar Used RIF Installer 1 | . . . . . 1 . . . Robots Hacked 14 | . . . . . . 2 11 1 Non-combat 8 | . . . . . . 2 6 . Combat 6 | . . . . . . . 5 1 Robot Hacks Applied 21 | . . . . . . 4 16 1 parse_system 3 | . . . . . . 1 2 . no_distress 4 | . . . . . . . 4 . generate_echo 1 | . . . . . . 1 . . deconstruct_machine 1 | . . . . . . . 1 . map_walls 1 | . . . . . . 1 . . find_recycling 1 | . . . . . . . 1 . ignore_parts 1 | . . . . . . . 1 . overload_power 2 | . . . . . . . 1 1 go_dormant 2 | . . . . . . . 2 . streamctrl_high 2 | . . . . . . 1 1 . formatsys_high 3 | . . . . . . . 3 . Relay Couplers Released 24 | . . . . . 19 . . 5 Machine Destruction 21 | . . . . . 16 . . 5 Programmers 3 | . . . . . 3 . . . Attached 6 | . . . . . . 1 5 . Fabnet Peak Effective % . | . . . . . . . . . Robots Rewired . | . . . . . . . . . Allies Hacked . | . . . . . . . . . Hacks Repelled . | . . . . . . . . . Allies | -11 -10 -10 -9 -8 -8 -8 -7 -7 -------- Run | Yrd Mat Min Mat Mat Gar Mat Fac Gar Total Allies 10 | . . 5 . . . 1 4 . Largest Group 5 | . . 5 5 5 5 1 2 . Highest-Rated Group 82 | . . 82 82 82 82 19 24 . Highest-Rated Ally 31 | . . 31 31 31 31 19 19 . Total Orders . | . . . . . . . . . Ally Attacks 115 | . . . 52 . 60 . 3 . Total Damage 1240 | . . . 548 . 656 . 36 . Kills 16 | . . . 6 . 10 . . . Allies Corrupted 1 | . . . . . 1 . . . Allies Melted . | . . . . . . . . . Intel | -11 -10 -10 -9 -8 -8 -8 -7 -7 ------- Run | Yrd Mat Min Mat Mat Gar Mat Fac Gar Robot Analysis Total . | . . . . . . . . . Derelict Logs Recovered 2 | . . 2 . . . . . . Drone Launches 16 | . . . . . 16 . . . Drone Recoveries . | . . . . . . . . . Exploration | -11 -10 -10 -9 -8 -8 -8 -7 -7 ------------- Run | Yrd Mat Min Mat Mat Gar Mat Fac Gar Turns Passed 7048 | 36 720 1115 185 85 2043 1562 1254 48 Spaces Moved 3943 | 37 626 854 132 61 937 689 564 43 Core 241 | 22 . . . . . 8 168 43 Treads . | . . . . . . . . . Legs 476 | . . . . . 322 93 61 . Wheels 3109 | 15 626 854 132 61 615 588 218 . Hover 117 | . . . . . . . 117 . Flight . | . . . . . . . . . Fastest Speed 50 | 50 100 115 130 130 130 130 50 50 Average Speed 158 | 70 102 121 130 130 204 192 184 50 Slowest Speed 1800 | 100 115 130 130 130 330 1800 750 50 Overloaded Moves . | . . . . . . . . . Propulsion Burnouts . | . . . . . . . . . Robots Hopped . | . . . . . . . . . Cave-ins Triggered 1 | . . . . . . . 1 . Exploration Rate (%) 39 | 3 79 100 18 7 82 50 12 8 Regions Visited 8 Branch Regions 1 Pre-discovered Areas 1 | . . 1 . . . . . . Known Exits Taken 3 | . . . . 1 . 1 1 . Unknown Exits Taken 4 | 1 1 1 1 . . . . . Scrap Searched 1 | . . 1 . . . . . . Spaces Dug 5 | . . . . . . . 5 . Terrain Destroyed 191 | . 91 . . . 95 . 5 . Melee 5 | . . . . . . . 5 . Projectile . | . . . . . . . . . AOE 186 | . 91 . . . 95 . . . Terrain Rammed . | . . . . . . . . . Walls Destroyed . | . . . . . . . . . Machines Disabled . | . . . . . . . . . Actions | -11 -10 -10 -9 -8 -8 -8 -7 -7 --------- Run | Yrd Mat Min Mat Mat Gar Mat Fac Gar Total 4547 | 46 681 934 145 66 1038 859 710 68 Wait 175 | . 24 70 5 . 3 43 30 . Move 3936 | 36 625 853 131 61 935 688 564 43 Hop . | . . . . . . . . . Pick Up 84 | 5 12 7 3 3 18 24 9 3 Fast Attach 7 | . . . . . . 7 . . Attach 51 | 4 3 . 3 1 10 13 15 2 Detach 4 | . . . 1 . 2 . 1 . Swap 33 | 1 3 1 2 1 3 16 6 . Drop 24 | . 3 3 . . 1 11 6 . Fire 95 | . 11 . . . 16 39 27 2 Melee 72 | . . . . . 5 18 49 . Ram 6 | . . . . . . . . 6 Kick . | . . . . . . . . . Crush . | . . . . . . . . . Escape Stasis 57 | . . . . . 45 . . 12 Rewire 3 | . . . . . . . 3 . Trap . | . . . . . . . . . Miscellaneous . | . . . . . . . . . Route ------- -11/Scrapyard -10/Materials -10/Mines (discovered 3 exits: *Mat x2 / [*Sub]) -9/Materials -8/Materials -8/Garrison (discovered 3 exits: *Mat x3) -8/Materials (discovered 2 exits: *Fac x2) -7/Factory -7/Garrison History --------- Turn | Location | Event 8 | -11/Scrapyard | Discovered new exit (range 15) 37 | -11/Scrapyard | Entered Materials 327 | -10/Materials | Build established: Mutant 624 | -10/Materials | Discovered new exit (range 16) 737 | -10/Materials | Derelicts attacked the area 757 | -10/Materials | Entered Mines 764 | -10/Mines | Discovered new exit (range 16) 818 | -10/Mines | A weapon hastily lodged in a ceiling crevice suddenly fell to the ground 929 | -10/Mines | Learned Materials terminal intel 977 | -10/Mines | Learned location of Storage (-9) 1124 | -10/Mines | Assisted by bots powering up and referring to "LRC-V3" 1271 | -10/Mines | Received a Rocket Launcher from a helpful Derelict 1324 | -10/Mines | Found the Drone Emporium 1329 | -10/Mines | Found Prototype Device 1432 | -10/Mines | Discovered new exit (range 16) 1578 | -10/Mines | Discovered new exit (range 5) 1872 | -10/Mines | Entered Materials 1872 | -9/Materials | Accompanied by 5 allies 1872 | -9/Materials | Evolved 2 slots: Utility x2 1872 | -9/Materials | Identified Bomb Drone Bay 1873 | -9/Materials | Loaded intel: 10 terminal locations 1877 | -9/Materials | Led the pair of lost Derelicts to an unsafe place 1991 | -9/Materials | Discovered new exit (range 15) 2057 | -9/Materials | Entered another Materials area 2057 | -8/Materials | Accompanied by 5 allies 2057 | -8/Materials | Evolved 2 slots: Propulsion x1, Utility x1 2142 | -8/Materials | Identified exit to Garrison 2142 | -8/Materials | Entered Garrison 2142 | -8/Garrison | Accompanied by 5 allies 2144 | -8/Garrison | Triggered checkpoint 2164 | -8/Garrison | Triggered checkpoint 2206 | -8/Garrison | Lost 3 allies 2336 | -8/Garrison | Triggered checkpoint 2363 | -8/Garrison | Build established: Skirmisher 2385 | -8/Garrison | Triggered checkpoint 2386 | -8/Garrison | Triggered checkpoint 2454 | -8/Garrison | Discovered new exit (range 11) 2490 | -8/Garrison | Triggered checkpoint 2505 | -8/Garrison | Garrison Relay disabled 2528 | -8/Garrison | Lost 3 parts (1p1u1w) 2538 | -8/Garrison | Lost 7 allies 2703 | -8/Garrison | Garrison Relay disabled 2849 | -8/Garrison | Build established: Scavenger-Mutant 3030 | -8/Garrison | Discovered new exit (range 12) 3116 | -8/Garrison | Triggered checkpoint 3153 | -8/Garrison | Lost 3 allies 3194 | -8/Garrison | Garrison Relay disabled 3368 | -8/Garrison | Triggered checkpoint 3398 | -8/Garrison | Triggered checkpoint 3431 | -8/Garrison | Lost 6 allies 3517 | -8/Garrison | Discovered new exit (range 11) 3624 | -8/Garrison | Triggered checkpoint 3686 | -8/Garrison | Garrison Relay disabled 3923 | -8/Garrison | Build established: Mutant 4010 | -8/Garrison | Installed Relay Interface Framework 4185 | -8/Garrison | Entered Materials 4591 | -8/Materials | Discovered new exit (range 14) 5191 | -8/Materials | Lost 3 parts (2n1w) 5198 | -8/Materials | Core integrity fell below 50% 5226 | -8/Materials | Lost 3 parts (1p1u1w) 5417 | -8/Materials | Core integrity fell below 20% 5724 | -8/Materials | Discovered new exit (range 8) 5744 | -8/Materials | Identified exit to Factory 5747 | -8/Materials | Entered Factory 5747 | -7/Factory | Evolved 2 slots: Utility x2 5798 | -7/Factory | Identified exit to DSF 6208 | -7/Factory | Build established: Bothacker-Mutant 6250 | -7/Factory | Crushed by falling debris 6618 | -7/Factory | Lost 4 parts (1p2n1w) 6887 | -7/Factory | Core integrity fell below 50% 6936 | -7/Factory | Lost 7 parts (2p2n1u2w) 6985 | -7/Factory | Core integrity fell below 20% 7001 | -7/Factory | Identified exit to Garrison 7001 | -7/Factory | Entered Garrison 7009 | -7/Garrison | Triggered checkpoint 7033 | -7/Garrison | Garrison Relay disabled 7045 | -7/Garrison | Triggered checkpoint 7046 | -7/Garrison | Lost 4 parts (3u1w) 7049 | -7/Garrison | System corruption reached 10% 7049 | -7/Garrison | Destroyed by B-48 Gladiator with Mace Last Messages --------------- 07035_ Field strength at 94. 07036_ Field strength at 88. 07037_ Field strength at 82. 07038_ Field strength at 76. 07039_ Field strength at 70. 07040_ Field strength at 64. 07041_ Field strength at 58. 07042_ Field strength at 52. 07043_ Field strength at 46. 07044_ Field strength at 40. 07045_ Beams of light sweep through the air. An alarm sounds. 07045_ Field strength at 34. 07046_ GUE XWF4DZ